bitfinex/quotes_BTCUSD_20250508
["timestamp","ask_amount","ask_price","bid_price","bid_amount"]
[1746712662096,0.20120733,99400.0,99398.0,0.0326]
[1746712663679,0.21126696,99401.0,99399.0,4.724822]
[1746712663891,0.21126334,99402.0,99401.0,0.0318]
[1746712664124,0.21126334,99402.0,99401.0,4.8159186]
[1746712664914,0.21126334,99402.0,99401.0,0.0910966]
[1746712665105,0.21126334,99402.0,99401.0,4.756622]
[1746712665496,0.001,99402.0,99401.0,4.756622]
[1746712665719,0.001,99402.0,99401.0,0.0318]
[1746712666234,0.001,99402.0,99401.0,6.8971]
[1746712666446,0.001,99402.0,99401.0,6.37356]
[1746712666685,0.001,99402.0,99401.0,6.47422692]
[1746712667038,0.001,99402.0,99401.0,7.1306399]
[1746712668242,0.01005924,99411.0,99408.0,0.3551]
[1746712668446,0.2013214,99412.0,99409.0,0.0151]
[1746712668640,0.21138054,99412.0,99410.0,0.0592966]
[1746712668847,0.21138054,99412.0,99411.0,0.00940513]
[1746712669649,0.21238054,99412.0,99411.0,0.00940513]
[1746712671057,0.21438054,99412.0,99411.0,0.00940513]
[1746712671472,0.21338054,99412.0,99411.0,0.00940513]
[1746712671676,0.21538054,99412.0,99411.0,0.00940513]
[1746712671820,0.21538054,99412.0,99411.0,0.04516866]
[1746712674108,0.21538054,99412.0,99411.0,0.03576353]
[1746712674656,0.21124878,99409.0,99406.0,0.34]
[1746712674855,0.21124878,99409.0,99408.0,0.34]
[1746712675878,0.21138053,99412.0,99409.0,0.20118814]
[1746712676101,0.001,99409.0,99408.0,0.0158]
[1746712676341,0.001,99409.0,99408.0,0.11646692]
[1746712676742,0.002,99409.0,99408.0,0.11646692]
[1746712678264,0.002,99409.0,99408.0,0.10066692]
[1746712680202,0.002,99409.0,99408.0,0.11716692]
[1746712680599,0.20318902,99409.0,99408.0,0.11716692]
[1746712680821,0.002,99409.0,99408.0,0.10066692]
[1746712681106,0.20318902,99409.0,99408.0,0.44066692]
[1746712682578,0.002,99409.0,99408.0,0.44066692]
[1746712682814,0.002,99409.0,99408.0,0.30466057]
[1746712683058,0.20318902,99409.0,99408.0,0.0592966]
[1746712683647,0.002,99409.0,99408.0,0.40769542]
[1746712683868,0.40224043,99444.0,99419.0,0.20116879]
[1746712683869,0.20113877,99434.0,99419.0,0.20116879]
[1746712684071,0.20114288,99432.0,99419.0,0.23316879]
[1746712684280,0.21120901,99428.0,99419.0,5.96052879]
[1746712684431,0.01005783,99425.0,99419.0,5.26500479]
[1746712684638,0.01005813,99422.0,99419.0,5.26500479]
[1746712684839,0.20116204,99423.0,99419.0,4.36598279]
[1746712685041,0.01005803,99423.0,99419.0,4.35332839]
[1746712685388,0.21121512,99425.0,99419.0,4.1521596]
[1746712685587,0.20116547,99421.0,99419.0,0.0980686]
[1746712686711,0.20116879,99419.0,99417.0,0.34]
[1746712686891,0.20118497,99411.0,99410.0,0.70465617]
[1746712687058,0.20118497,99411.0,99410.0,0.34]
[1746712687279,0.20118497,99411.0,99410.0,0.42452745]
[1746712687687,0.20118497,99411.0,99410.0,0.08452745]
[1746712687949,0.01005904,99413.0,99403.0,0.28878063]
[1746712687950,0.20119914,99404.0,99403.0,0.28878063]
[1746712688490,0.20119914,99404.0,99403.0,0.39378063]
[1746712689141,0.20119781,99405.0,99403.0,0.39378063]
[1746712689401,0.01005975,99406.0,99404.0,0.04297017]
[1746712689561,0.20119712,99405.0,99404.0,0.04297017]
[1746712690566,0.20119712,99405.0,99404.0,0.05942495]
[1746712691846,0.2112528,99407.0,99404.0,0.05942495]
[1746712692049,0.01005945,99409.0,99406.0,0.23179486]
[1746712692332,0.21124896,99409.0,99407.0,0.0861786]
[1746712692536,0.21124896,99409.0,99408.0,0.00705205]
[1746712692687,0.21124896,99409.0,99408.0,0.01645478]
[1746712692887,0.21124896,99409.0,99401.0,0.34]
[1746712692888,0.01005995,99404.0,99401.0,0.34]
[1746712693082,0.21125937,99404.0,99402.0,6.547753]
[1746712693516,0.21125937,99404.0,99402.0,6.504353]
[1746712693725,0.01005995,99404.0,99402.0,5.61433292]
[1746712693892,0.01005995,99404.0,99403.0,4.724822]
[1746712694102,0.00105059,99409.0,99404.0,0.0165]
[1746712694308,0.00105059,99409.0,99402.0,0.10066692]
[1746712694309,0.01005965,99407.0,99402.0,0.10066692]
[1746712694509,0.01005975,99406.0,99403.0,2.96893306]
[1746712694766,0.21125532,99406.0,99403.0,0.02723306]
[1746712695068,0.01005975,99406.0,99403.0,0.02723306]
[1746712695266,0.20119712,99405.0,99403.0,0.02723306]
[1746712696271,0.01006026,99401.0,99399.0,0.34]
[1746712696473,0.01006026,99401.0,99400.0,0.490316]
[1746712696474,0.21126591,99401.0,99400.0,0.490316]
[1746712696642,0.21126591,99401.0,99399.0,0.34]
[1746712696874,0.21126591,99401.0,99400.0,0.490316]
[1746712697070,0.21125864,99405.0,99400.0,0.50037636]
[1746712697272,0.01005995,99404.0,99401.0,0.82843236]
[1746712697500,0.21125949,99404.0,99402.0,0.541662]
[1746712698451,0.20120117,99403.0,99402.0,0.541662]
[1746712698603,0.20120117,99403.0,99402.0,0.56889506]
[1746712698799,0.20120117,99403.0,99402.0,0.56990206]
[1746712699426,0.20120117,99403.0,99390.0,0.36465617]
[1746712699624,0.20120117,99403.0,99388.0,0.05740623]
[1746712699625,0.20122951,99389.0,99388.0,0.04170623]
[1746712699950,0.20124166,99383.0,99375.0,0.002]
[1746712700305,0.20375717,99383.0,99382.0,0.04013713]
[1746712700520,0.20375717,99383.0,99382.0,0.00013644]
[1746712700521,0.21915717,99383.0,99382.0,0.00013644]
[1746712700716,0.23184166,99383.0,99382.0,0.00013644]
[1746712704010,0.23584166,99383.0,99382.0,0.00013644]
[1746712704614,0.33650858,99383.0,99382.0,0.00013644]
[1746712706803,0.33450858,99383.0,99382.0,0.00013644]
[1746712707668,0.33250858,99383.0,99382.0,0.00013644]
[1746712707824,0.33550858,99383.0,99382.0,0.00013644]
[1746712708034,0.4314426,99383.0,99382.0,0.00013644]
[1746712708458,0.7734426,99383.0,99382.0,0.00013644]
[1746712709269,0.7744426,99383.0,99382.0,0.00013644]
[1746712710300,0.7744426,99383.0,99375.0,0.002]
[1746712710301,0.54125583,99376.0,99375.0,0.002]
[1746712710509,0.54125583,99376.0,99350.0,0.002]
[1746712710510,0.54130647,99351.0,99350.0,0.002]
[1746712710718,0.64267339,99351.0,99350.0,0.002]
[1746712710914,0.20135714,99326.0,99325.0,0.002]
[1746712711149,0.30524171,99326.0,99325.0,0.002]
[1746712711341,0.30272406,99326.0,99325.0,0.002]
[1746712711542,0.31902406,99326.0,99325.0,0.002]
[1746712713761,0.30572406,99326.0,99325.0,0.002]
[1746712714269,0.30202406,99326.0,99325.0,0.002]
[1746712714997,0.30302406,99326.0,99325.0,0.004]
[1746712715350,0.30202406,99326.0,99325.0,0.004]
[1746712715557,0.30202406,99326.0,99325.0,0.006]
[1746712716041,0.30202406,99326.0,99325.0,0.004]
[1746712716249,0.30202406,99326.0,99325.0,0.002]
[1746712716445,0.30202406,99326.0,99325.0,0.003]
[1746712717501,0.30202406,99326.0,99325.0,0.005]
[1746712717714,0.31732406,99326.0,99325.0,0.005]
[1746712718104,0.30202406,99326.0,99325.0,0.005]
[1746712720023,0.20135714,99326.0,99325.0,0.0211]
[1746712720224,0.20135642,99327.0,99325.0,0.0211]
[1746712720425,0.20135642,99327.0,99326.0,0.0316]
[1746712720633,0.20135642,99327.0,99326.0,0.03553158]
[1746712720984,0.20135642,99327.0,99326.0,0.0161]
[1746712722289,0.20235642,99327.0,99326.0,0.0161]
[1746712722682,0.20435642,99327.0,99326.0,0.0161]
[1746712724336,0.20535642,99327.0,99326.0,0.0161]
[1746712724551,0.20435642,99327.0,99326.0,0.0161]
[1746712724918,0.20635642,99327.0,99326.0,0.0161]
[1746712725485,0.005,99327.0,99326.0,0.0312]
[1746712725898,0.005,99327.0,99326.0,4.756022]
[1746712726089,0.01006714,99333.0,99326.0,4.724822]
[1746712726090,0.01006755,99329.0,99326.0,4.724822]
[1746712726248,0.01006755,99329.0,99327.0,0.0315]
[1746712726457,0.20235612,99327.0,99326.0,0.0315]
[1746712726901,0.20135612,99327.0,99326.0,0.0315]
[1746712727149,0.20135612,99327.0,99326.0,1.2655]
[1746712727643,0.20235612,99327.0,99326.0,1.1559]
[1746712728029,0.001,99327.0,99326.0,1.25656692]
[1746712728227,0.001,99327.0,99326.0,1.0574236]
[1746712728436,0.20235511,99327.0,99326.0,1.0574236]
[1746712728793,0.20235511,99327.0,99326.0,1.07476692]
[1746712729530,0.20235511,99327.0,99325.0,0.002]
[1746712729531,0.20135714,99326.0,99325.0,0.002]
[1746712729737,0.20387423,99326.0,99325.0,0.002]
[1746712731061,0.20387423,99326.0,99325.0,0.003]
[1746712731770,0.20387423,99326.0,99325.0,0.004]
[1746712732577,0.20387423,99326.0,99325.0,0.01171833]
[1746712732889,0.20387423,99326.0,99325.0,0.004]
[1746712733092,0.00251709,99326.0,99325.0,0.004]
[1746712733294,0.20135714,99326.0,99325.0,0.004]
[1746712733714,0.00251709,99327.0,99325.0,0.004]
[1746712734136,0.20387246,99327.0,99325.0,0.004]
[1746712734310,0.00251709,99327.0,99325.0,0.004]
[1746712734542,0.20387294,99327.0,99325.0,0.004]
[1746712734678,0.00251709,99327.0,99325.0,0.004]
[1746712734880,0.00251709,99327.0,99325.0,0.002]
[1746712735240,0.20135714,99326.0,99325.0,0.004]
[1746712735396,0.20387424,99326.0,99325.0,0.004]
[1746712736117,0.20387424,99326.0,99325.0,0.003]
[1746712736497,0.20387424,99326.0,99325.0,0.004]
[1746712736926,0.20387424,99326.0,99325.0,0.003]
[1746712737126,0.20387424,99326.0,99325.0,0.004]
[1746712737596,0.01006755,99329.0,99325.0,0.004]
[1746712737597,0.01006745,99330.0,99325.0,0.004]
[1746712737775,0.0025171,99329.0,99327.0,0.20135408]
[1746712737909,0.20135714,99326.0,99325.0,0.004]
[1746712738109,0.20387422,99326.0,99325.0,0.004]
[1746712738311,0.20135625,99327.0,99325.0,0.003]
[1746712738511,0.20387422,99326.0,99325.0,0.002]
[1746712738715,0.20387422,99326.0,99325.0,0.004]
[1746712738949,0.00251708,99326.0,99325.0,0.20535917]
[1746712739156,0.21141484,99331.0,99325.0,0.20435917]
[1746712739334,0.01006765,99328.0,99325.0,0.003]
[1746712739578,0.20387276,99327.0,99325.0,0.004]
[1746712739945,0.20387276,99327.0,99325.0,0.002]
[1746712740206,0.20135714,99326.0,99325.0,0.002]
[1746712740363,0.20387374,99327.0,99325.0,0.003]
[1746712740559,0.20135714,99326.0,99325.0,0.002]
[1746712740784,0.21675714,99326.0,99325.0,0.002]
[1746712740942,0.21675714,99326.0,99325.0,0.003]
[1746712741458,0.21675714,99326.0,99325.0,0.004]
[1746712741665,0.21675714,99326.0,99325.0,0.003]
[1746712741867,0.21675714,99326.0,99325.0,0.002]
[1746712742350,0.21675714,99326.0,99325.0,0.003]
[1746712743042,0.21675714,99326.0,99325.0,0.004]
[1746712743603,0.20135714,99326.0,99325.0,0.004]
[1746712745021,0.20387427,99326.0,99325.0,0.004]
[1746712745403,0.32039365,99326.0,99325.0,0.004]
[1746712745562,0.23305714,99326.0,99325.0,0.004]
[1746712745763,0.21645714,99326.0,99325.0,0.004]
[1746712746173,0.20135714,99326.0,99325.0,0.003]
[1746712746375,0.20135714,99326.0,99325.0,0.002]
[1746712746552,0.20135714,99326.0,99325.0,0.006]
[1746712747551,0.20135714,99326.0,99325.0,0.004]
[1746712747669,0.20335714,99326.0,99325.0,0.004]
[1746712747866,0.20135714,99326.0,99325.0,0.002]
[1746712748082,0.20335714,99326.0,99325.0,0.002]
[1746712748688,0.20135714,99326.0,99325.0,0.002]
[1746712748919,0.20335714,99326.0,99325.0,0.002]
[1746712749280,0.20535714,99326.0,99325.0,0.002]
[1746712749713,0.22175714,99326.0,99325.0,0.002]
[1746712750018,0.21975714,99326.0,99325.0,0.002]
[1746712750625,0.22175714,99326.0,99325.0,0.002]
[1746712753526,0.20535714,99326.0,99325.0,0.002]
[1746712757209,0.004,99326.0,99325.0,0.0178]
[1746712757355,0.004,99326.0,99325.0,3.14155117]
[1746712757709,0.004,99326.0,99325.0,6.58873209]
[1746712758250,0.002,99326.0,99325.0,6.92873209]
[1746712758429,0.002,99326.0,99325.0,6.27985609]
[1746712759399,0.21141458,99331.0,99329.0,0.0166]
[1746712759615,0.21141458,99331.0,99330.0,4.573779]
[1746712759964,0.2114117,99333.0,99330.0,4.58441206]
[1746712760166,0.20134566,99332.0,99331.0,4.573779]
[1746712760320,0.2114129,99332.0,99331.0,4.557179]
[1746712760515,0.20135511,99327.0,99326.0,5.527917]
[1746712761117,0.20135511,99327.0,99326.0,5.230567]
[1746712763063,0.20135511,99327.0,99326.0,5.203188]
[1746712763371,0.20135511,99327.0,99326.0,5.082688]
[1746712764059,0.20135511,99327.0,99326.0,5.066688]
[1746712764462,0.20135335,99328.0,99326.0,5.066688]
[1746712764721,0.20135335,99328.0,99327.0,5.358581]
[1746712764902,0.01006755,99329.0,99327.0,5.358581]
[1746712765111,0.01006653,99339.0,99332.0,0.01006724]
[1746712765349,0.002,99370.0,99335.0,0.0155]
[1746712765480,0.01011586,99351.0,99345.0,0.20131709]
[1746712765683,0.21137677,99349.0,99348.0,0.0155]
[1746712765867,0.21137677,99349.0,99348.0,4.572679]
[1746712766068,0.21137677,99349.0,99348.0,4.4254]
[1746712766297,0.20133282,99338.0,99336.0,0.0155]
[1746712766499,0.20133687,99336.0,99335.0,0.34]
[1746712766718,0.20133687,99336.0,99335.0,0.44066692]
[1746712767054,0.20133687,99336.0,99335.0,0.34]
[1746712767448,0.20133971,99335.0,99333.0,0.34]
[1746712768371,0.20134295,99333.0,99332.0,0.28878063]
[1746712768570,0.20134295,99333.0,99332.0,4.84595963]
[1746712769114,0.01006684,99336.0,99333.0,0.0166]
[1746712769396,0.01006684,99336.0,99334.0,0.10066692]
[1746712770629,0.01006684,99336.0,99334.0,0.10166692]
[1746712770872,0.01006684,99336.0,99334.0,0.10366692]
[1746712771042,0.01006684,99336.0,99334.0,0.003]
[1746712771223,0.21140409,99336.0,99334.0,0.003]
[1746712773697,0.2013389,99335.0,99334.0,0.003]
[1746712774400,0.21140407,99336.0,99334.0,0.003]
[1746712774591,0.21140407,99336.0,99334.0,0.001]
[1746712775249,0.21140407,99336.0,99334.0,0.20234089]
[1746712775806,0.21139453,99341.0,99338.0,0.20133259]
[1746712775986,0.01006633,99341.0,99338.0,0.20133259]
[1746712776184,0.002,99370.0,99341.0,0.01006633]
[1746712776185,0.01006583,99346.0,99341.0,0.01006633]
[1746712776365,0.21138244,99346.0,99340.0,0.01006643]
[1746712776707,0.21138882,99343.0,99340.0,0.2013276]
[1746712776852,0.21139126,99342.0,99339.0,0.20133079]
[1746712777061,0.21138882,99343.0,99338.0,0.02666664]
[1746712777062,0.01006593,99345.0,99342.0,0.20132356]
[1746712777416,0.21138645,99345.0,99343.0,2.9589]
[1746712777622,0.015,99369.0,99350.0,0.2013085]
[1746712777826,0.0100636,99368.0,99350.0,0.25434255]
[1746712778060,0.0159,99369.0,99350.0,0.2326085]
[1746712778284,0.02847968,99369.0,99350.0,0.2326085]
[1746712778923,0.01841618,99369.0,99350.0,0.2326085]
[1746712779283,0.01841618,99369.0,99350.0,0.5726085]
[1746712779696,0.00105054,99351.0,99350.0,0.5568085]
[1746712780666,0.00205054,99351.0,99350.0,0.5568085]
[1746712780867,0.00205054,99351.0,99350.0,0.65747542]
[1746712784384,0.00205054,99351.0,99350.0,0.64197542]
[1746712786492,0.00205054,99351.0,99350.0,0.44066692]
[1746712786657,0.01705054,99351.0,99350.0,0.34]
[1746712786857,0.01705054,99351.0,99350.0,0.5413085]
[1746712787050,0.01705054,99351.0,99350.0,0.34]
[1746712787477,0.01705054,99351.0,99350.0,0.5413085]
[1746712787679,0.00205054,99351.0,99350.0,0.5413085]
[1746712787873,0.00205054,99351.0,99350.0,0.64197542]
[1746712788075,0.20335701,99351.0,99350.0,0.34]
[1746712788255,0.01825054,99351.0,99350.0,0.5413085]
[1746712788796,0.01825054,99351.0,99350.0,0.34905697]
[1746712788997,0.01825054,99351.0,99349.0,0.20131016]
[1746712789199,0.015,99349.0,99347.0,0.20131434]
[1746712789398,0.01821643,99348.0,99347.0,0.20131073]
[1746712789582,0.00251643,99348.0,99347.0,0.20131073]
[1746712789780,0.00205054,99351.0,99349.0,0.20131051]
[1746712789998,5.054e-05,99351.0,99350.0,0.0684523]
[1746712790207,5.054e-05,99351.0,99348.0,0.2013123]
[1746712790423,0.22963887,99351.0,99347.0,0.20131435]
[1746712790626,0.21137578,99350.0,99347.0,0.20131435]
[1746712790953,0.00251643,99349.0,99348.0,0.20131179]
[1746712791140,0.00251641,99350.0,99349.0,0.20131053]
[1746712791362,0.01761641,99350.0,99349.0,0.20131053]
[1746712791928,0.20132066,99344.0,99343.0,0.04032148]
[1746712792110,0.01006674,99337.0,99334.0,0.34]
[1746712792312,0.00251671,99337.0,99335.0,0.10066692]
[1746712792490,0.00251671,99337.0,99336.0,0.34]
[1746712792691,0.00251671,99338.0,99337.0,0.54133485]
[1746712792891,0.00251669,99339.0,99338.0,0.34]
[1746712793091,0.20133687,99336.0,99335.0,0.04021772]
[1746712793342,0.01258345,99337.0,99333.0,0.50019072]
[1746712793548,0.20133687,99336.0,99335.0,0.34]
[1746712793752,0.01006674,99337.0,99335.0,0.34]
[1746712794075,0.2013389,99335.0,99334.0,0.10066692]
[1746712794239,0.01258345,99337.0,99333.0,0.28878063]
[1746712794240,0.02586674,99337.0,99335.0,0.03452305]
[1746712794442,0.0158,99337.0,99335.0,0.20133848]
[1746712794646,0.01006653,99339.0,99337.0,0.20133485]
[1746712794899,0.0025167,99338.0,99337.0,0.34]
[1746712795059,0.01006653,99339.0,99337.0,0.44066692]
[1746712795261,0.01258323,99339.0,99337.0,0.64200159]
[1746712796138,0.21391512,99339.0,99337.0,0.44066692]
[1746712796294,0.01258323,99339.0,99337.0,0.64200164]
[1746712796507,0.01258323,99339.0,99337.0,0.54133472]
[1746712797697,0.01258323,99339.0,99337.0,0.34]
[1746712798786,0.0025167,99339.0,99337.0,0.34]
[1746712799239,0.0025167,99339.0,99338.0,0.20133282]
[1746712799451,0.20131123,99349.0,99345.0,0.20131805]
[1746712799650,0.01006562,99348.0,99345.0,0.20131805]
[1746712799811,0.01006572,99347.0,99343.0,0.21138687]
[1746712800009,0.21138047,99347.0,99344.0,0.20132021]
[1746712800217,0.20129375,99358.0,99350.0,0.2013085]
[1746712800419,0.01006461,99358.0,99350.0,0.2013085]
[1746712800666,0.20131661,99346.0,99345.0,0.0280304]
[1746712800810,0.01006643,99340.0,99337.0,0.34]
[1746712801012,0.20132471,99344.0,99341.0,0.01006633]
[1746712801224,0.20132471,99344.0,99340.0,0.20132852]
[1746712801429,0.01006643,99340.0,99334.0,0.34]
[1746712801736,0.01006643,99340.0,99337.0,0.34]
[1746712801944,0.01006623,99342.0,99339.0,0.34]
[1746712802142,0.01258286,99342.0,99339.0,0.54133057]
[1746712802743,0.20384337,99341.0,99339.0,0.34]
[1746712802948,0.20384337,99341.0,99335.0,0.03441524]
[1746712802949,0.21733485,99337.0,99335.0,0.03441524]
[1746712803148,0.01801671,99336.0,99335.0,0.03441524]
[1746712803355,0.20135714,99326.0,99320.0,0.02]
[1746712803558,0.01006765,99328.0,99324.0,0.34]
[1746712803874,0.01006765,99328.0,99320.0,0.02]
[1746712803875,0.0158,99326.0,99320.0,0.02]
[1746712804072,0.03421722,99326.0,99320.0,0.02]
[1746712804464,0.03421722,99326.0,99325.0,0.004]
[1746712804886,0.03421722,99326.0,99325.0,0.003]
[1746712805086,0.03421722,99326.0,99325.0,0.002]
[1746712805283,0.01831722,99326.0,99325.0,0.002]
[1746712805758,0.0158,99326.0,99325.0,0.002]
[1746712806235,0.0168,99326.0,99325.0,0.002]
[1746712807102,0.0168,99326.0,99325.0,0.34972607]
[1746712807103,0.001,99326.0,99325.0,0.34972607]
[1746712807302,0.001,99326.0,99325.0,4.89112607]
[1746712807505,0.001,99326.0,99325.0,3.44302607]
[1746712807728,0.001,99326.0,99325.0,3.4189]
[1746712807938,0.001,99326.0,99325.0,0.342]
[1746712808280,0.20135658,99327.0,99325.0,0.005]
[1746712808555,0.00251694,99326.0,99325.0,0.005]
[1746712808754,0.01006765,99328.0,99325.0,0.20635833]
[1746712808910,0.20135519,99330.0,99325.0,0.20635833]
[1746712808911,0.01006745,99330.0,99326.0,0.06417555]
[1746712809115,0.20135511,99327.0,99325.0,0.345]
[1746712809313,0.20387212,99327.0,99325.0,0.345]
[1746712809545,0.01861701,99326.0,99325.0,0.344]
[1746712809717,0.01861701,99326.0,99325.0,0.342]
[1746712809948,0.01861701,99326.0,99325.0,0.343]
[1746712810149,0.01861701,99326.0,99325.0,0.003]
[1746712810574,0.03391701,99326.0,99325.0,0.003]
[1746712811212,0.01861701,99326.0,99325.0,0.003]
[1746712811417,0.00251701,99326.0,99325.0,0.003]
[1746712811597,0.01006613,99343.0,99326.0,0.34]
[1746712811829,0.01006643,99340.0,99336.0,0.01006684]
[1746712811979,0.01006643,99340.0,99334.0,0.01006704]
[1746712811980,0.01006653,99339.0,99335.0,0.2013389]
[1746712812176,0.21140404,99336.0,99333.0,0.56599782]
[1746712812384,0.21140404,99336.0,99330.0,0.36465617]
[1746712812587,0.20134591,99332.0,99330.0,0.36465617]
[1746712812786,0.01006694,99335.0,99332.0,0.01006724]
[1746712812984,0.21140193,99337.0,99334.0,0.20134062]
[1746712813187,0.21140193,99337.0,99333.0,0.01006714]
[1746712813188,0.21392183,99336.0,99333.0,0.01006714]
[1746712813384,0.20134635,99332.0,99330.0,0.34]
[1746712814174,0.01006735,99331.0,99328.0,0.35006765]
[1746712814375,0.001,99336.0,99335.0,0.2013389]
[1746712814583,0.001,99336.0,99335.0,0.31840582]
[1746712814752,0.01006653,99339.0,99337.0,0.20133456]
[1746712814963,0.21139788,99339.0,99336.0,0.01006684]
[1746712815187,0.21139788,99339.0,99335.0,0.32847276]
[1746712815188,0.01006572,99347.0,99341.0,0.01006633]
[1746712815389,0.20131723,99346.0,99341.0,0.10066692]
[1746712815590,5.054e-05,99351.0,99344.0,0.01006603]
[1746712815856,5.054e-05,99351.0,99349.0,0.20130916]
[1746712816066,5.054e-05,99351.0,99350.0,4.557179]
[1746712816483,5.054e-05,99351.0,99349.0,0.20130916]
[1746712816692,5.054e-05,99351.0,99348.0,0.21137613]
[1746712816829,0.20131355,99348.0,99344.0,0.01106603]
[1746712817025,0.20131587,99347.0,99345.0,0.34]
[1746712817298,0.20131587,99347.0,99344.0,0.001]
[1746712817299,0.20131863,99345.0,99344.0,0.001]
[1746712817491,0.20131863,99345.0,99330.0,0.36465617]
[1746712817492,0.20134498,99332.0,99331.0,0.34]
[1746712817645,0.20135599,99327.0,99325.0,0.002]
[1746712817992,0.01911701,99326.0,99325.0,0.002]
[1746712818666,0.03541701,99326.0,99325.0,0.002]
[1746712818990,0.01911701,99326.0,99325.0,0.002]
[1746712819811,0.01911701,99326.0,99325.0,0.005]
[1746712820035,0.02011701,99326.0,99325.0,0.005]
[1746712820246,0.02011701,99326.0,99325.0,0.002]
[1746712820781,0.02211701,99326.0,99325.0,0.002]
[1746712821341,0.003,99326.0,99325.0,0.002]
[1746712821547,0.003,99326.0,99325.0,0.02635037]
[1746712821980,0.003,99326.0,99325.0,4.58352937]
[1746712822192,0.003,99326.0,99325.0,5.03873714]
[1746712822349,0.003,99326.0,99325.0,8.29277914]
[1746712822546,0.001,99326.0,99325.0,8.29277914]
[1746712822945,0.01006603,99344.0,99339.0,0.01006653]
[1746712823188,0.01006613,99343.0,99340.0,0.20132876]
[1746712823649,0.01006643,99340.0,99336.0,0.35006684]
[1746712823851,0.01006643,99340.0,99335.0,0.20133821]
[1746712823852,0.01006643,99340.0,99338.0,0.34]
[1746712824180,0.20132873,99341.0,99338.0,0.34]
[1746712824359,0.20133079,99339.0,99338.0,0.34]
[1746712824564,0.01006765,99328.0,99325.0,0.002]
[1746712824773,0.01006735,99331.0,99325.0,0.05073357]
[1746712824774,0.01258444,99330.0,99325.0,0.05073357]
[1746712824976,0.01006755,99329.0,99326.0,0.34]
[1746712825208,0.20135511,99327.0,99326.0,0.34]
[1746712825395,0.20135511,99327.0,99325.0,0.002]
[1746712825594,0.00251709,99326.0,99325.0,0.002]
[1746712825797,0.00251709,99326.0,99325.0,0.02635069]
[1746712826019,0.20387219,99327.0,99325.0,0.02635069]
[1746712826215,0.21142277,99328.0,99325.0,0.02635069]
[1746712826216,0.01006765,99328.0,99325.0,0.02635069]
[1746712826489,0.21142195,99328.0,99326.0,0.003]
[1746712826695,0.21142184,99328.0,99326.0,0.003]
[1746712826815,0.20135714,99326.0,99325.0,0.002]
[1746712827018,0.20135714,99326.0,99325.0,0.004]
[1746712827327,0.20135714,99326.0,99325.0,0.005]
[1746712827533,0.20135714,99326.0,99325.0,0.007]
[1746712827753,0.20135577,99327.0,99325.0,0.007]
[1746712827959,0.20135577,99327.0,99325.0,0.005]
[1746712828165,0.20135577,99327.0,99325.0,0.007]
[1746712828335,0.20135577,99327.0,99325.0,0.004]
[1746712828751,0.20135577,99327.0,99325.0,0.007]
[1746712829192,0.20135577,99327.0,99325.0,0.004]
[1746712829492,0.20135577,99327.0,99325.0,0.005]
[1746712829689,0.20135577,99327.0,99325.0,0.007]
[1746712830951,0.01006735,99331.0,99326.0,0.20135654]
[1746712831188,0.01006755,99329.0,99325.0,0.01706795]
[1746712831403,0.21141896,99329.0,99325.0,0.21842688]
[1746712831658,0.01006745,99330.0,99327.0,0.21142199]
[1746712832036,0.20134928,99330.0,99328.0,0.01006765]
[1746712832216,0.20134287,99334.0,99329.0,0.01006755]
[1746712832428,0.01006684,99336.0,99333.0,0.21140896]
[1746712832659,5.054e-05,99351.0,99333.0,0.21140896]
[1746712832660,0.01006603,99344.0,99340.0,0.20132817]
[1746712832871,0.01006633,99341.0,99337.0,0.01006674]
[1746712833038,0.21139557,99340.0,99337.0,3.32616674]
[1746712833373,0.21138711,99344.0,99339.0,0.01006653]
[1746712833575,0.21138615,99345.0,99341.0,0.01006633]
[1746712833802,0.20132089,99344.0,99341.0,0.01006633]
[1746712833928,0.20132356,99343.0,99340.0,0.21139459]
[1746712834489,0.20132674,99341.0,99337.0,0.20133306]
[1746712834704,0.20133096,99339.0,99336.0,4.557179]
[1746712834912,0.01006643,99340.0,99337.0,0.20133431]
[1746712835157,0.01006593,99345.0,99332.0,0.21141188]
[1746712835158,0.01006552,99349.0,99346.0,0.2013153]
[1746712835344,0.21137698,99349.0,99346.0,0.21138113]
[1746712835545,0.21137698,99349.0,99347.0,0.02723306]
[1746712835724,0.01006562,99348.0,99343.0,0.20132211]
[1746712836665,0.01006562,99348.0,99344.0,0.20132012]
[1746712836666,0.2113803,99347.0,99344.0,0.20132012]
[1746712836807,0.01106562,99348.0,99344.0,0.20132066]
[1746712836996,0.21337891,99348.0,99344.0,0.20132066]
[1746712837348,0.21337891,99348.0,99345.0,0.07974998]
[1746712837349,0.01206562,99348.0,99345.0,0.07974998]
[1746712837509,0.01006572,99347.0,99343.0,0.01006613]
[1746712837713,0.20131687,99346.0,99343.0,0.21138704]
[1746712838114,0.21138582,99345.0,99342.0,0.20132278]
[1746712838317,0.21138085,99347.0,99343.0,4.098]
[1746712838543,0.2113833,99346.0,99343.0,4.098]
[1746712838736,0.2113833,99346.0,99343.0,4.19866692]
[1746712838896,0.2113833,99346.0,99343.0,0.10066692]
[1746712839321,5.054e-05,99351.0,99348.0,0.20131255]
[1746712839520,5.054e-05,99351.0,99348.0,0.20131127]
[1746712839742,0.20135726,99351.0,99348.0,0.20131227]
[1746712840114,0.21142269,99351.0,99348.0,0.01006562]
[1746712840379,0.20131661,99346.0,99344.0,0.34]
[1746712840585,0.20383314,99346.0,99344.0,0.34]
[1746712840947,0.21137626,99349.0,99344.0,0.34]
[1746712841098,0.01111586,99351.0,99347.0,0.01006572]
[1746712841295,0.01111586,99351.0,99348.0,0.20131121]
[1746712841471,0.00105054,99351.0,99350.0,0.2013085]
[1746712841824,0.00205054,99351.0,99350.0,0.2013085]
[1746712842074,0.00205054,99351.0,99350.0,4.7584875]
[1746712842265,0.00305054,99351.0,99350.0,4.80957634]
[1746712842647,5.054e-05,99351.0,99350.0,2.87729734]
[1746712842968,0.00205054,99351.0,99350.0,2.87729734]
[1746712843294,0.00105054,99351.0,99350.0,3.33250511]
[1746712843649,0.00105054,99351.0,99350.0,5.70073611]
[1746712843792,0.00105054,99351.0,99350.0,5.19201411]
[1746712844460,0.00105054,99351.0,99350.0,5.20821411]
[1746712844876,5.054e-05,99351.0,99350.0,5.20821411]
[1746712845286,5.054e-05,99351.0,99350.0,5.21121411]